[Event "November 21 Early 2023"]
[Site "https://www.chess.com"]
[Date "2023.11.21"]
[Round "6"]
[White "FREDERICKtheMATE"]
[Black "Ljukin, Sergei"]
[Result "0-1"]
[Board "107"]
[TimeControl "180+1"]
[BlackFideId "14102200"]
[WhiteElo "2563"]
[BlackElo "2312"]
[BlackTeam "UKR"]
[WhiteClock "0:01:12"]
[BlackClock "0:00:37"]

1. Nf3 {[%clk 0:03:00]}  d5 {[%clk 0:02:53]} 2. c4 {[%clk 0:02:58]}  c6 {[%clk 0:02:53]} 3. b3 {[%clk 0:02:58]}  Nf6 {[%clk 0:02:53]} 4. Bb2 {[%clk 0:02:58]}  e6 {[%clk 0:02:53]} 5. e3 {[%clk 0:02:58]}  Nbd7 {[%clk 0:02:54]} 6. Be2 {[%clk 0:02:58]}  Bd6 {[%clk 0:02:53]} 7. O-O {[%clk 0:02:58]}  e5 {[%clk 0:02:49]} 8. d4 {[%clk 0:02:57]}  e4 {[%clk 0:02:49]} 9. Ne5 {[%clk 0:02:56]}  Qe7 {[%clk 0:02:48]} 10. Nxd7 {[%clk 0:02:53]}  Bxd7 {[%clk 0:02:48]} 11. c5 {[%clk 0:02:52]}  Bc7 {[%clk 0:02:48]} 12. b4 {[%clk 0:02:52]}  h5 {[%clk 0:02:46]} 13. h3 {[%clk 0:02:51]}  Be6 {[%clk 0:02:41]} 14. Re1 {[%clk 0:02:43]}  Qd7 {[%clk 0:02:39]} 15. Bf1 {[%clk 0:02:41]}  g5 {[%clk 0:02:36]} 16. a4 {[%clk 0:02:36]}  h4 {[%clk 0:02:31]} 17. b5 {[%clk 0:02:33]}  g4 {[%clk 0:02:30]} 18. hxg4 {[%clk 0:02:32]}  Nxg4 {[%clk 0:02:23]} 19. Qc2 {[%clk 0:02:26]}  Bb8 {[%clk 0:02:13]} 20. f4 {[%clk 0:02:10]}  exf3 {[%clk 0:01:39]} 21. gxf3 {[%clk 0:02:09]}  Nh2 {[%clk 0:01:39]} 22. Nd2 {[%clk 0:01:53]}  Bh3 {[%clk 0:01:05]} 23. e4 {[%clk 0:01:36]}  Rg8+ {[%clk 0:00:46]} 24. Kh1 {[%clk 0:01:34]}  Bxf1 {[%clk 0:00:43]} 25. exd5+ {[%clk 0:01:32]}  Kd8 {[%clk 0:00:42]} 26. dxc6 {[%clk 0:01:12]}  Qh3 {[%clk 0:00:37]} 0-1

[Event "November 21 Early 2023"]
[Site "https://www.chess.com"]
[Date "2023.11.21"]
[Round "6"]
[White "Shuvalov, Evgenij"]
[Black "Zaksaite, Salomeja"]
[Result "1/2-1/2"]
[Board "109"]
[TimeControl "180+1"]
[WhiteFideId "4187237"]
[BlackFideId "12801496"]
[WhiteElo "2059"]
[BlackElo "2065"]
[WhiteTeam "FID"]
[BlackTeam "LTU"]
[WhiteClock "0:00:38"]
[BlackClock "0:00:02"]

1. d4 {[%clk 0:02:53]}  Nf6 {[%clk 0:02:59]} 2. c4 {[%clk 0:02:52]}  g6 {[%clk 0:02:59]} 3. Nc3 {[%clk 0:02:50]}  d5 {[%clk 0:02:58]} 4. Nf3 {[%clk 0:02:48]}  Bg7 {[%clk 0:02:58]} 5. Qb3 {[%clk 0:02:48]}  dxc4 {[%clk 0:02:58]} 6. Qxc4 {[%clk 0:02:49]}  O-O {[%clk 0:02:57]} 7. e4 {[%clk 0:02:49]}  Bg4 {[%clk 0:02:57]} 8. Be3 {[%clk 0:02:44]}  Nfd7 {[%clk 0:02:55]} 9. Rd1 {[%clk 0:02:40]}  Nb6 {[%clk 0:02:55]} 10. Qb3 {[%clk 0:02:40]}  Nc6 {[%clk 0:02:51]} 11. Be2 {[%clk 0:02:34]}  Bxf3 {[%clk 0:02:40]} 12. gxf3 {[%clk 0:02:33]}  Nxd4 {[%clk 0:02:30]} 13. Bxd4 {[%clk 0:02:25]}  Bxd4 {[%clk 0:02:31]} 14. Nb5 {[%clk 0:02:25]}  c5 {[%clk 0:02:28]} 15. h4 {[%clk 0:02:19]}  h5 {[%clk 0:02:09]} 16. f4 {[%clk 0:02:17]}  e6 {[%clk 0:02:06]} 17. f5 {[%clk 0:02:12]}  exf5 {[%clk 0:02:05]} 18. exf5 {[%clk 0:02:12]}  Kg7 {[%clk 0:01:44]} 19. Nxd4 {[%clk 0:01:58]}  cxd4 {[%clk 0:01:44]} 20. Qb4 {[%clk 0:01:44]}  Qf6 {[%clk 0:01:40]} 21. Rg1 {[%clk 0:01:40]}  Qxf5 {[%clk 0:01:11]} 22. Qxd4+ {[%clk 0:01:37]}  Qf6 {[%clk 0:01:11]} 23. Bxh5 {[%clk 0:01:23]}  Rfe8+ {[%clk 0:01:02]} 24. Kf1 {[%clk 0:01:22]}  Rad8 {[%clk 0:00:56]} 25. Qxf6+ {[%clk 0:01:21]}  Kxf6 {[%clk 0:00:57]} 26. Rxd8 {[%clk 0:01:20]}  Rxd8 {[%clk 0:00:56]} 27. Bf3 {[%clk 0:01:20]}  Rd2 {[%clk 0:00:54]} 28. Bxb7 {[%clk 0:01:16]}  Rxb2 {[%clk 0:00:54]} 29. a3 {[%clk 0:01:07]}  Nc4 {[%clk 0:00:53]} 30. Bd5 {[%clk 0:01:04]}  Rb1+ {[%clk 0:00:46]} 31. Kg2 {[%clk 0:01:03]}  Rxg1+ {[%clk 0:00:45]} 32. Kxg1 {[%clk 0:01:04]}  Nxa3 {[%clk 0:00:45]} 33. Kf1 {[%clk 0:01:02]}  Nb5 {[%clk 0:00:38]} 34. Ke1 {[%clk 0:01:01]}  Nd6 {[%clk 0:00:31]} 35. Bf3 {[%clk 0:00:55]}  Ke5 {[%clk 0:00:19]} 36. h5 {[%clk 0:00:54]}  gxh5 {[%clk 0:00:13]} 37. Bxh5 {[%clk 0:00:55]}  Kd4 {[%clk 0:00:12]} 38. Kd2 {[%clk 0:00:50]}  f5 {[%clk 0:00:11]} 39. Kc2 {[%clk 0:00:48]}  a5 {[%clk 0:00:10]} 40. Kb3 {[%clk 0:00:48]}  Ne4 {[%clk 0:00:04]} 41. f4 {[%clk 0:00:44]}  Nd6 {[%clk 0:00:02]} 42. Ka4 {[%clk 0:00:43]}  Nc4 {[%clk 0:00:02]} 43. Bf7 {[%clk 0:00:43]}  Kc5 {[%clk 0:00:02]} 44. Be6 {[%clk 0:00:42]}  Nb6+ {[%clk 0:00:01]} 45. Kxa5 {[%clk 0:00:41]}  Nc4+ {[%clk 0:00:01]} 46. Ka4 {[%clk 0:00:39]}  Ne3 {[%clk 0:00:01]} 47. Bxf5 {[%clk 0:00:38]}  Kd4 {[%clk 0:00:02]} 48. Be6 {[%clk 0:00:38]}  Ke4 {[%clk 0:00:02]} 49. f5 {[%clk 0:00:38]}  Nxf5 {[%clk 0:00:02]} 1/2-1/2

[Event "November 21 Early 2023"]
[Site "https://www.chess.com"]
[Date "2023.11.21"]
[Round "6"]
[White "AC_20"]
[Black "elmusmolamas"]
[Result "1/2-1/2"]
[Board "110"]
[TimeControl "180+1"]
[WhiteElo "2380"]
[BlackElo "2549"]
[WhiteClock "0:00:07"]
[BlackClock "0:00:04"]

1. e4 {[%clk 0:03:00]}  c6 {[%clk 0:02:58]} 2. Nf3 {[%clk 0:03:00]}  g6 {[%clk 0:02:59]} 3. d3 {[%clk 0:03:01]}  Bg7 {[%clk 0:02:59]} 4. Nc3 {[%clk 0:03:01]}  b5 {[%clk 0:02:58]} 5. Be2 {[%clk 0:03:01]}  b4 {[%clk 0:02:58]} 6. Nb1 {[%clk 0:03:01]}  a5 {[%clk 0:02:58]} 7. O-O {[%clk 0:03:01]}  d6 {[%clk 0:02:54]} 8. c3 {[%clk 0:02:59]}  c5 {[%clk 0:02:51]} 9. d4 {[%clk 0:02:58]}  Nd7 {[%clk 0:02:47]} 10. Bb5 {[%clk 0:02:57]}  Ba6 {[%clk 0:02:44]} 11. Qa4 {[%clk 0:02:53]}  Bxb5 {[%clk 0:02:42]} 12. Qxb5 {[%clk 0:02:54]}  Qb6 {[%clk 0:02:37]} 13. Qxb6 {[%clk 0:02:50]}  Nxb6 {[%clk 0:02:38]} 14. Be3 {[%clk 0:02:39]}  Nc4 {[%clk 0:02:36]} 15. dxc5 {[%clk 0:02:36]}  Nxe3 {[%clk 0:02:36]} 16. fxe3 {[%clk 0:02:37]}  dxc5 {[%clk 0:02:36]} 17. Ng5 {[%clk 0:02:37]}  Nh6 {[%clk 0:02:33]} 18. Nd2 {[%clk 0:02:16]}  bxc3 {[%clk 0:02:33]} 19. bxc3 {[%clk 0:02:17]}  Bxc3 {[%clk 0:02:32]} 20. Rad1 {[%clk 0:02:17]}  O-O {[%clk 0:02:15]} 21. Nc4 {[%clk 0:02:17]}  Rfd8 {[%clk 0:02:09]} 22. Rc1 {[%clk 0:02:09]}  Bf6 {[%clk 0:02:04]} 23. Nf3 {[%clk 0:02:07]}  a4 {[%clk 0:01:48]} 24. Nb6 {[%clk 0:02:06]}  Ra6 {[%clk 0:01:39]} 25. Nd5 {[%clk 0:02:06]}  Rc8 {[%clk 0:01:33]} 26. e5 {[%clk 0:02:04]}  Rd8 {[%clk 0:01:21]} 27. Rxc5 {[%clk 0:02:00]}  Bg7 {[%clk 0:01:17]} 28. Nxe7+ {[%clk 0:01:56]}  Kf8 {[%clk 0:01:15]} 29. Nd5 {[%clk 0:01:56]}  Nf5 {[%clk 0:01:10]} 30. e4 {[%clk 0:01:53]}  Nh6 {[%clk 0:00:52]} 31. Ng5 {[%clk 0:01:52]}  Bxe5 {[%clk 0:00:45]} 32. Rb5 {[%clk 0:01:36]}  Kg7 {[%clk 0:00:35]} 33. Rb7 {[%clk 0:01:35]}  Rf8 {[%clk 0:00:35]} 34. h4 {[%clk 0:01:28]}  a3 {[%clk 0:00:25]} 35. Rf3 {[%clk 0:01:27]}  Bd4+ {[%clk 0:00:23]} 36. Kf1 {[%clk 0:01:22]}  Bb2 {[%clk 0:00:15]} 37. Nf4 {[%clk 0:01:03]}  Kg8 {[%clk 0:00:10]} 38. Nd3 {[%clk 0:00:46]}  Rf6 {[%clk 0:00:08]} 39. Nxb2 {[%clk 0:00:41]}  Rxf3+ {[%clk 0:00:09]} 40. gxf3 {[%clk 0:00:36]}  axb2 {[%clk 0:00:10]} 41. Rxb2 {[%clk 0:00:36]}  Ra8 {[%clk 0:00:10]} 42. Ke2 {[%clk 0:00:35]}  Ra3 {[%clk 0:00:11]} 43. Kf2 {[%clk 0:00:25]}  Kg7 {[%clk 0:00:10]} 44. Kg3 {[%clk 0:00:24]}  Ng8 {[%clk 0:00:10]} 45. Kf4 {[%clk 0:00:24]}  Nf6 {[%clk 0:00:10]} 46. Rb7 {[%clk 0:00:22]}  Nh5+ {[%clk 0:00:10]} 47. Kg4 {[%clk 0:00:20]}  Nf6+ {[%clk 0:00:08]} 48. Kh3 {[%clk 0:00:20]}  Kg8 {[%clk 0:00:07]} 49. Rxf7 {[%clk 0:00:20]}  Nxe4 {[%clk 0:00:07]} 50. Rf4 {[%clk 0:00:16]}  Nxg5+ {[%clk 0:00:06]} 51. hxg5 {[%clk 0:00:16]}  Rxa2 {[%clk 0:00:07]} 52. Kg4 {[%clk 0:00:16]}  Ra5 {[%clk 0:00:07]} 53. Re4 {[%clk 0:00:16]}  Kg7 {[%clk 0:00:06]} 54. f4 {[%clk 0:00:17]}  Ra7 {[%clk 0:00:06]} 55. Rd4 {[%clk 0:00:17]}  Rf7 {[%clk 0:00:06]} 56. Rd5 {[%clk 0:00:17]}  h5+ {[%clk 0:00:07]} 57. gxh6+ {[%clk 0:00:17]}  Kxh6 {[%clk 0:00:08]} 58. Rd6 {[%clk 0:00:17]}  Rb7 {[%clk 0:00:07]} 59. Rd5 {[%clk 0:00:18]}  Rb4 {[%clk 0:00:07]} 60. Rd6 {[%clk 0:00:18]}  Rb1 {[%clk 0:00:08]} 61. Rd7 {[%clk 0:00:11]}  Rg1+ {[%clk 0:00:08]} 62. Kf3 {[%clk 0:00:11]}  Rf1+ {[%clk 0:00:07]} 63. Kg4 {[%clk 0:00:11]}  Rg1+ {[%clk 0:00:08]} 64. Kf3 {[%clk 0:00:12]}  Rh1 {[%clk 0:00:07]} 65. Kg4 {[%clk 0:00:12]}  Re1 {[%clk 0:00:06]} 66. Kf3 {[%clk 0:00:12]}  Re8 {[%clk 0:00:06]} 67. Kg4 {[%clk 0:00:12]}  Rc8 {[%clk 0:00:06]} 68. Rd6 {[%clk 0:00:12]}  Rc5 {[%clk 0:00:06]} 69. Kf3 {[%clk 0:00:11]}  Kh5 {[%clk 0:00:04]} 70. Rd8 {[%clk 0:00:11]}  Rc3+ {[%clk 0:00:05]} 71. Ke4 {[%clk 0:00:10]}  Rc4+ {[%clk 0:00:05]} 72. Ke5 {[%clk 0:00:09]}  Rc1 {[%clk 0:00:04]} 73. Rh8+ {[%clk 0:00:09]}  Kg4 {[%clk 0:00:04]} 74. Rg8 {[%clk 0:00:10]}  Rc5+ {[%clk 0:00:03]} 75. Kf6 {[%clk 0:00:10]}  Rc6+ {[%clk 0:00:04]} 76. Kf7 {[%clk 0:00:10]}  Kf5 {[%clk 0:00:02]} 77. Rg7 {[%clk 0:00:09]}  Rc7+ {[%clk 0:00:03]} 78. Kg8 {[%clk 0:00:09]}  Rc8+ {[%clk 0:00:02]} 79. Kh7 {[%clk 0:00:09]}  Rc6 {[%clk 0:00:02]} 80. Rf7+ {[%clk 0:00:08]}  Kg4 {[%clk 0:00:03]} 81. Rg7 {[%clk 0:00:08]}  Kh5 {[%clk 0:00:03]} 82. Kg8 {[%clk 0:00:07]}  Rf6 {[%clk 0:00:03]} 83. Kh7 {[%clk 0:00:07]}  Re6 {[%clk 0:00:03]} 84. Kg8 {[%clk 0:00:07]}  Rc6 {[%clk 0:00:03]} 85. Kh7 {[%clk 0:00:07]}  Rf6 {[%clk 0:00:04]} 86. Rg8 {[%clk 0:00:06]}  Rf7+ {[%clk 0:00:02]} 87. Rg7 {[%clk 0:00:06]}  Rf6 {[%clk 0:00:03]} 88. Rg8 {[%clk 0:00:07]}  Kg4 {[%clk 0:00:03]} 89. Rxg6+ {[%clk 0:00:07]}  Rxg6 {[%clk 0:00:03]} 90. Kxg6 {[%clk 0:00:07]}  Kxf4 {[%clk 0:00:04]} 1/2-1/2

[Event "November 21 Early 2023"]
[Site "https://www.chess.com"]
[Date "2023.11.21"]
[Round "6"]
[White "mkllnd1517"]
[Black "Andriasian, Zaven"]
[Result "0-1"]
[Board "111"]
[TimeControl "180+1"]
[BlackFideId "13302000"]
[WhiteElo "2367"]
[BlackElo "2624"]
[BlackTeam "ARM"]
[WhiteClock "0:00:00"]
[BlackClock "0:02:02"]

1. d4 {[%clk 0:03:00]}  Nf6 {[%clk 0:02:56]} 2. c4 {[%clk 0:03:01]}  g6 {[%clk 0:02:56]} 3. Nc3 {[%clk 0:03:01]}  Bg7 {[%clk 0:02:57]} 4. e4 {[%clk 0:03:01]}  d6 {[%clk 0:02:58]} 5. Nf3 {[%clk 0:03:02]}  O-O {[%clk 0:02:58]} 6. Be2 {[%clk 0:03:03]}  Nbd7 {[%clk 0:02:59]} 7. O-O {[%clk 0:03:03]}  e5 {[%clk 0:02:59]} 8. Qc2 {[%clk 0:03:03]}  exd4 {[%clk 0:02:59]} 9. Nxd4 {[%clk 0:03:04]}  Re8 {[%clk 0:03:00]} 10. Be3 {[%clk 0:03:02]}  a6 {[%clk 0:02:59]} 11. Rad1 {[%clk 0:03:00]}  h5 {[%clk 0:02:58]} 12. h3 {[%clk 0:02:53]}  Nc5 {[%clk 0:02:57]} 13. f3 {[%clk 0:02:49]}  Ne6 {[%clk 0:02:57]} 14. b4 {[%clk 0:02:42]}  h4 {[%clk 0:02:55]} 15. Nxe6 {[%clk 0:02:35]}  Bxe6 {[%clk 0:02:55]} 16. c5 {[%clk 0:02:35]}  Nh5 {[%clk 0:02:54]} 17. cxd6 {[%clk 0:02:29]}  cxd6 {[%clk 0:02:55]} 18. Nd5 {[%clk 0:02:25]}  Rc8 {[%clk 0:02:53]} 19. Qd2 {[%clk 0:02:05]}  Ng3 {[%clk 0:02:52]} 20. Rf2 {[%clk 0:01:50]}  Bxd5 {[%clk 0:02:51]} 21. Qxd5 {[%clk 0:01:48]}  Rc2 {[%clk 0:02:49]} 22. Bc4 {[%clk 0:01:43]}  Rxf2 {[%clk 0:02:45]} 23. Kxf2 {[%clk 0:01:41]}  Qf6 {[%clk 0:02:44]} 24. Kg1 {[%clk 0:01:35]}  b5 {[%clk 0:02:33]} 25. Bb3 {[%clk 0:01:25]}  Ne2+ {[%clk 0:02:32]} 26. Kf2 {[%clk 0:01:19]}  Nc3 {[%clk 0:02:30]} 27. Qb7 {[%clk 0:01:02]}  Nxe4+ {[%clk 0:02:29]} 28. Kg1 {[%clk 0:00:57]}  Nc3 {[%clk 0:02:28]} 29. Rxd6 {[%clk 0:00:45]}  Qf5 {[%clk 0:02:15]} 30. Bxf7+ {[%clk 0:00:03]}  Qxf7 {[%clk 0:02:11]} 31. Rd7 {[%clk 0:00:03]}  Qf6 {[%clk 0:02:07]} 32. Bd4 {[%clk 0:00:01]}  Ne2+ {[%clk 0:02:05]} 33. Kf2 {[%clk 0:00:01]}  Nxd4 {[%clk 0:02:06]} 34. Rxg7+ {[%clk 0:00:01]}  Qxg7 {[%clk 0:02:03]} 35. Qd5+ {[%clk 0:00:00]}  Ne6 {[%clk 0:02:02]} 0-1

[Event "November 21 Early 2023"]
[Site "https://www.chess.com"]
[Date "2023.11.21"]
[Round "6"]
[White "Redzisz, Michal"]
[Black "Mejia, Cherry Ann"]
[Result "1-0"]
[Board "112"]
[TimeControl "180+1"]
[WhiteFideId "21816107"]
[BlackFideId "5206880"]
[WhiteElo "2068"]
[BlackElo "2009"]
[WhiteTeam "POL"]
[BlackTeam "PHI"]
[WhiteClock "0:00:17"]
[BlackClock "0:01:28"]

1. Nf3 {[%clk 0:03:00]}  d5 {[%clk 0:03:00]} 2. d4 {[%clk 0:02:59]}  Nf6 {[%clk 0:03:00]} 3. c4 {[%clk 0:02:59]}  dxc4 {[%clk 0:03:00]} 4. Nc3 {[%clk 0:02:57]}  a6 {[%clk 0:02:59]} 5. a4 {[%clk 0:02:54]}  Nc6 {[%clk 0:02:58]} 6. e4 {[%clk 0:02:48]}  Na5 {[%clk 0:02:58]} 7. Ne5 {[%clk 0:02:30]}  Nb3 {[%clk 0:02:57]} 8. Bxc4 {[%clk 0:02:23]}  Qxd4 {[%clk 0:02:49]} 9. Bxf7+ {[%clk 0:02:15]}  Kd8 {[%clk 0:02:47]} 10. Bxb3 {[%clk 0:02:12]}  Qxd1+ {[%clk 0:02:46]} 11. Kxd1 {[%clk 0:02:05]}  Ng4 {[%clk 0:02:39]} 12. Nf7+ {[%clk 0:01:51]}  Ke8 {[%clk 0:02:39]} 13. Nxh8 {[%clk 0:01:46]}  Nxf2+ {[%clk 0:02:39]} 14. Kc2 {[%clk 0:01:15]}  Nxh1 {[%clk 0:02:40]} 15. Be3 {[%clk 0:01:15]}  e6 {[%clk 0:02:34]} 16. Rxh1 {[%clk 0:01:08]}  Bd7 {[%clk 0:02:18]} 17. Rf1 {[%clk 0:01:04]}  b5 {[%clk 0:02:18]} 18. Nf7 {[%clk 0:00:55]}  c5 {[%clk 0:02:10]} 19. Ne5 {[%clk 0:00:29]}  c4 {[%clk 0:02:11]} 20. Nxd7 {[%clk 0:00:24]}  Kxd7 {[%clk 0:02:11]} 21. axb5 {[%clk 0:00:20]}  cxb3+ {[%clk 0:02:10]} 22. Kxb3 {[%clk 0:00:20]}  axb5 {[%clk 0:02:10]} 23. Rf7+ {[%clk 0:00:21]}  Kc6 {[%clk 0:02:06]} 24. Bf4 {[%clk 0:00:18]}  Rd8 {[%clk 0:02:00]} 25. Be5 {[%clk 0:00:18]}  g6 {[%clk 0:01:47]} 26. Kc2 {[%clk 0:00:14]}  b4 {[%clk 0:01:44]} 27. Ne2 {[%clk 0:00:13]}  Bh6 {[%clk 0:01:42]} 28. Nd4+ {[%clk 0:00:13]}  Kc5 {[%clk 0:01:27]} 29. Nxe6+ {[%clk 0:00:13]}  Kc4 {[%clk 0:01:27]} 30. Nxd8 {[%clk 0:00:14]}  b3+ {[%clk 0:01:28]} 31. Kd1 {[%clk 0:00:13]}  Kd3 {[%clk 0:01:28]} 32. Rf3+ {[%clk 0:00:11]}  Kxe4 {[%clk 0:01:28]} 33. Nf7 {[%clk 0:00:11]}  Bf8 {[%clk 0:01:25]} 34. Ng5+ {[%clk 0:00:12]}  Kxe5 {[%clk 0:01:26]} 35. Rxf8 {[%clk 0:00:13]}  h6 {[%clk 0:01:26]} 36. Nf3+ {[%clk 0:00:13]}  Ke4 {[%clk 0:01:27]} 37. Rf6 {[%clk 0:00:13]}  g5 {[%clk 0:01:26]} 38. Rxh6 {[%clk 0:00:14]}  g4 {[%clk 0:01:27]} 39. Nd2+ {[%clk 0:00:14]}  Ke3 {[%clk 0:01:27]} 40. Nxb3 {[%clk 0:00:14]}  Kf2 {[%clk 0:01:28]} 41. Rg6 {[%clk 0:00:15]}  Kxg2 {[%clk 0:01:26]} 42. Rxg4+ {[%clk 0:00:14]}  Kh3 {[%clk 0:01:26]} 43. Rg8 {[%clk 0:00:13]}  Kh4 {[%clk 0:01:26]} 44. Ke2 {[%clk 0:00:13]}  Kh5 {[%clk 0:01:26]} 45. Kf3 {[%clk 0:00:14]}  Kh6 {[%clk 0:01:27]} 46. Kf4 {[%clk 0:00:15]}  Kh7 {[%clk 0:01:28]} 47. Rg3 {[%clk 0:00:15]}  Kh6 {[%clk 0:01:29]} 48. Kf5 {[%clk 0:00:16]}  Kh7 {[%clk 0:01:29]} 49. Kf6 {[%clk 0:00:16]}  Kh8 {[%clk 0:01:28]} 50. Kf7 {[%clk 0:00:17]} 1-0

[Event "November 21 Early 2023"]
[Site "https://www.chess.com"]
[Date "2023.11.21"]
[Round "6"]
[White "Jovic, Stanoje"]
[Black "Silvestre, Christian"]
[Result "1-0"]
[Board "113"]
[TimeControl "180+1"]
[WhiteFideId "905020"]
[BlackFideId "30956269"]
[WhiteElo "2249"]
[BlackElo "2349"]
[WhiteTeam "SRB"]
[BlackTeam "USA"]
[WhiteClock "0:00:23"]
[BlackClock "0:00:12"]

1. c4 {[%clk 0:03:00]}  Nf6 {[%clk 0:02:58]} 2. g3 {[%clk 0:03:01]}  g6 {[%clk 0:02:54]} 3. Bg2 {[%clk 0:03:01]}  Bg7 {[%clk 0:02:55]} 4. Nc3 {[%clk 0:03:01]}  O-O {[%clk 0:02:56]} 5. Nf3 {[%clk 0:03:01]}  c6 {[%clk 0:02:54]} 6. O-O {[%clk 0:03:00]}  d5 {[%clk 0:02:55]} 7. cxd5 {[%clk 0:03:01]}  Nxd5 {[%clk 0:02:54]} 8. e4 {[%clk 0:03:00]}  Nxc3 {[%clk 0:02:49]} 9. bxc3 {[%clk 0:03:00]}  Bg4 {[%clk 0:02:44]} 10. Rb1 {[%clk 0:02:52]}  b5 {[%clk 0:02:39]} 11. d4 {[%clk 0:02:49]}  a5 {[%clk 0:02:32]} 12. h3 {[%clk 0:02:49]}  Bc8 {[%clk 0:02:25]} 13. Be3 {[%clk 0:02:39]}  Nd7 {[%clk 0:02:24]} 14. Qc2 {[%clk 0:02:35]}  Nb6 {[%clk 0:02:21]} 15. Nd2 {[%clk 0:02:32]}  Ba6 {[%clk 0:02:08]} 16. Rfd1 {[%clk 0:02:31]}  Qc7 {[%clk 0:02:00]} 17. e5 {[%clk 0:02:15]}  Nd5 {[%clk 0:01:56]} 18. Ne4 {[%clk 0:02:13]}  Rfb8 {[%clk 0:01:48]} 19. Nc5 {[%clk 0:02:10]}  Bc8 {[%clk 0:01:47]} 20. g4 {[%clk 0:02:04]}  e6 {[%clk 0:01:44]} 21. Qd2 {[%clk 0:02:00]}  Nxe3 {[%clk 0:01:22]} 22. Qxe3 {[%clk 0:02:00]}  Bf8 {[%clk 0:01:19]} 23. Ne4 {[%clk 0:01:59]}  Be7 {[%clk 0:01:18]} 24. f4 {[%clk 0:01:51]}  Qd8 {[%clk 0:01:11]} 25. g5 {[%clk 0:01:46]}  Qf8 {[%clk 0:01:06]} 26. h4 {[%clk 0:01:45]}  Bd7 {[%clk 0:01:05]} 27. h5 {[%clk 0:01:45]}  Qg7 {[%clk 0:01:05]} 28. hxg6 {[%clk 0:01:40]}  hxg6 {[%clk 0:00:59]} 29. Rd2 {[%clk 0:01:37]}  b4 {[%clk 0:00:51]} 30. c4 {[%clk 0:01:34]}  a4 {[%clk 0:00:47]} 31. c5 {[%clk 0:01:31]}  Qh7 {[%clk 0:00:38]} 32. Bf3 {[%clk 0:01:24]}  Kf8 {[%clk 0:00:22]} 33. Rh2 {[%clk 0:01:23]}  Qg8 {[%clk 0:00:20]} 34. Kg2 {[%clk 0:01:21]}  Ke8 {[%clk 0:00:20]} 35. Rbh1 {[%clk 0:01:17]}  b3 {[%clk 0:00:16]} 36. Rh8 {[%clk 0:01:13]}  Qxh8 {[%clk 0:00:16]} 37. Rxh8+ {[%clk 0:01:12]}  Bf8 {[%clk 0:00:17]} 38. Nc3 {[%clk 0:00:49]}  bxa2 {[%clk 0:00:14]} 39. Nxa2 {[%clk 0:00:47]}  Rb2+ {[%clk 0:00:15]} 40. Kg3 {[%clk 0:00:46]}  Rxa2 {[%clk 0:00:15]} 41. f5 {[%clk 0:00:36]}  gxf5 {[%clk 0:00:14]} 42. g6 {[%clk 0:00:33]}  fxg6 {[%clk 0:00:13]} 43. Qh6 {[%clk 0:00:32]}  Kf7 {[%clk 0:00:13]} 44. Rh7+ {[%clk 0:00:25]}  Ke8 {[%clk 0:00:13]} 45. Qxg6+ {[%clk 0:00:25]}  Kd8 {[%clk 0:00:13]} 46. Qf7 {[%clk 0:00:25]}  Ra7 {[%clk 0:00:12]} 47. Qxf8+ {[%clk 0:00:25]}  Kc7 {[%clk 0:00:12]} 48. Rxd7+ {[%clk 0:00:25]}  Kxd7 {[%clk 0:00:13]} 49. Qf7+ {[%clk 0:00:25]}  Kc8 {[%clk 0:00:14]} 50. Qxa7 {[%clk 0:00:25]}  a3 {[%clk 0:00:15]} 51. Bxc6 {[%clk 0:00:24]}  Kd8 {[%clk 0:00:12]} 52. Qd7# {[%clk 0:00:23]} 1-0

[Event "November 21 Early 2023"]
[Site "https://www.chess.com"]
[Date "2023.11.21"]
[Round "6"]
[White "alfianasybullina"]
[Black "Omariev, Maksim"]
[Result "0-1"]
[Board "114"]
[TimeControl "180+1"]
[BlackFideId "4193423"]
[WhiteElo "2328"]
[BlackElo "2542"]
[BlackTeam "RUS"]
[WhiteClock "0:00:39"]
[BlackClock "0:00:28"]

1. Nf3 {[%clk 0:02:57]}  h5 {[%clk 0:02:57]} 2. d4 {[%clk 0:02:56]}  h4 {[%clk 0:02:58]} 3. h3 {[%clk 0:02:57]}  e6 {[%clk 0:02:58]} 4. c4 {[%clk 0:02:57]}  d5 {[%clk 0:02:58]} 5. Nc3 {[%clk 0:02:57]}  Be7 {[%clk 0:02:57]} 6. cxd5 {[%clk 0:02:57]}  exd5 {[%clk 0:02:57]} 7. Qb3 {[%clk 0:02:57]}  c6 {[%clk 0:02:58]} 8. Bf4 {[%clk 0:02:57]}  Nf6 {[%clk 0:02:56]} 9. e3 {[%clk 0:02:57]}  Nbd7 {[%clk 0:02:49]} 10. Bd3 {[%clk 0:02:54]}  Qb6 {[%clk 0:02:43]} 11. Qxb6 {[%clk 0:02:52]}  axb6 {[%clk 0:02:41]} 12. O-O {[%clk 0:02:48]}  b5 {[%clk 0:02:24]} 13. a3 {[%clk 0:02:39]}  Nb6 {[%clk 0:02:21]} 14. Ne5 {[%clk 0:02:35]}  Nc4 {[%clk 0:02:16]} 15. Nxc4 {[%clk 0:02:26]}  bxc4 {[%clk 0:02:16]} 16. Bc2 {[%clk 0:02:21]}  Be6 {[%clk 0:02:05]} 17. e4 {[%clk 0:02:14]}  dxe4 {[%clk 0:02:02]} 18. Nxe4 {[%clk 0:02:15]}  Nxe4 {[%clk 0:01:58]} 19. Bxe4 {[%clk 0:02:14]}  O-O-O {[%clk 0:01:48]} 20. Rfd1 {[%clk 0:02:05]}  Rd7 {[%clk 0:01:45]} 21. Rd2 {[%clk 0:01:52]}  Rhd8 {[%clk 0:01:43]} 22. Rad1 {[%clk 0:01:52]}  Bf6 {[%clk 0:01:41]} 23. Be3 {[%clk 0:01:49]}  Kc7 {[%clk 0:01:32]} 24. Kf1 {[%clk 0:01:46]}  b5 {[%clk 0:01:28]} 25. Ke2 {[%clk 0:01:45]}  Bd5 {[%clk 0:01:23]} 26. Bf5 {[%clk 0:01:39]}  Re7 {[%clk 0:01:22]} 27. Kf1 {[%clk 0:01:36]}  g6 {[%clk 0:01:19]} 28. Bg4 {[%clk 0:01:34]}  Be4 {[%clk 0:01:18]} 29. Bf4+ {[%clk 0:01:26]}  Kb7 {[%clk 0:01:14]} 30. Be5 {[%clk 0:01:26]}  Bxe5 {[%clk 0:00:41]} 31. dxe5 {[%clk 0:01:26]}  Rxd2 {[%clk 0:00:42]} 32. Rxd2 {[%clk 0:01:26]}  Rxe5 {[%clk 0:00:40]} 33. Rd7+ {[%clk 0:01:15]}  Kb6 {[%clk 0:00:40]} 34. f4 {[%clk 0:01:14]}  Rd5 {[%clk 0:00:33]} 35. Rxf7 {[%clk 0:00:55]}  Rd2 {[%clk 0:00:33]} 36. Bc8 {[%clk 0:00:55]}  Bxg2+ {[%clk 0:00:28]} 37. Ke1 {[%clk 0:00:39]}  Rxb2 {[%clk 0:00:28]} 0-1